Workbook

Sheet Quelle decision (2) (hidden)
B1: MAIS QUE CHOISIR ?
B3: Est-ce que cet item a de l'importance ?
C5: Notez son importance | F5: Comparez vos projets => | G5: Administratif Seine et marne | H5: Dev Montpellier | I5: Projet3 | J5: Projet4 | K5: Projet5 | L5: Projet6
B6: Lieu [transport, culture, intérêt…] | C6: 75% | D6: =C6/$C$19 -> 10% | F6: 10 : idéal ….... 0 : mal localisé => | G6: 3 | H6: 10
B7: Climat : [canicule / inondation} | C7: 75% | D7: 10% | F7: 10 : idéal ….... 0 : trop risqué => | G7: 7 | H7: 4
B8: Surface habitable | C8: 60% | D8: 8% | F8: 10 : idéale …..... 0 : trop petite => | G8: 7 | H8: 6
B9: Jardin | C9: 50% | D9: 7% | F9: 10 : idéal …..... 0 : inexistant => | G9: 7 | H9: 4
B10: Prix [endettement} | C10: 75% | D10: 10% | F10: 10 : sans endettement …. Fort endettement => | G10: 8 | H10: 2
B11: Temps libre pour projet personnel | C11: 70% | D11: 9% | F11: 10 : temps lible ….... 0 : pas de temps libre => | G11: 5 | H11: 7
B12: Epanouissement personnel | C12: 99% | D12: 13% | F12: 10 : fort ….... 0 : faible => | G12: 6 | H12: 8
B13: Epanouissement professionnel | C13: 60% | D13: 8% | F13: 10 : fort ….... 0 : faible => | G13: 3 | H13: 7
B14: Intérêt du travail | C14: 60% | D14: 8% | F14: 10 : fort ….... 0 : faible => | G14: 3 | H14: 7
B15: Salaire | C15: 60% | D15: 8% | F15: 10 : fort ….... 0 : faible => | G15: 7 | H15: 5
B16: Avantages en nature | C16: 30% | D16: 4% | F16: 10 : très intéressant….... 0 : inexistant => | G16: 5 | H16: 4
B17: Avantages en nature | C17: 30% | D17: 4% | F17: 10 : très intéressant….... 0 : inexistant => | G17: 5 | H17: 4
F18: Visualisez les notes => | G18: =G6*$D6+G7*$D7+G8*$D8+G9*$D9+G10*$D10+G11*$D11+G12*$D12+G13*$D13+G14*$D14+G15*$D15+G17*$D17 -> 5.37 | H18: 5.78 | I18: 0.00 | J18: 0.00 | K18: 0.00 | L18: 0.00
C19: =SUM(C6:C18) -> 7.44 | D19: =SUM(D6:D18) -> 100%

Sheet Quelle decision
C1: UN PEU D'AIDE POUR CHOISIR ?
B3: Tout d'abord, choisissez les critères qui vont vous permettre de faire votre choix entre différents projets. Par exemple s'il s'agit de choisir entre deux jobs, vous pouvez sélectionner des critères purement professionnels comme : l'intérêt du poste, le salaire, le temps de travail, mais également des critères environnementaux ou de localisation.... Si vous pensez déménager alors les critères de localisation ou de surface habitable risquent plus certainement de faire la différence!
B6: Famille de critère | C6: Quelle est l'importance de ce critère dans votre choix ?
D8: Evaluer son importance | H8: Nommez vos projets => puis notez son poids en fonction de l'échelle associée ci-dessous | I8: Travail1 : Assistante de direction Paris 8 | J8: Secretaire à Monbeau Village sur Seine | K8: Projet3 | L8: Projet4 | M8: Projet5
B9: Dev_professionnel | C9: Epanouissement professionnel | D9: important | E9: =IF(ISERROR(VLOOKUP(D9,importance!$A$2:$B$8,2,FALSE)),0,VLOOKUP(D9,importance!$A$2:$B$8,2,FALSE)) -> 75% | F9: =IF(E9=0,0,E9/$E$21) -> 19% | H9: =IF(ISERROR(VLOOKUP(C9,Tableau5[[#All],[Criteres]:[notation]],2,FALSE)),"",VLOOKUP(C9,Tableau5[[#All],[Criteres]:[notation]],2,FALSE)) -> 0-inexistant … => 10-parfait | I9: 10 | J9: 6
B10: Dev_professionnel | C10: Rémunération | D10: moyennement important | E10: =IF(ISERROR(VLOOKUP(D10,importance!$A$2:$B$8,2,FALSE)),0,VLOOKUP(D10,importance!$A$2:$B$8,2,FALSE)) -> 50% | F10: 13% | H10: =IF(ISERROR(VLOOKUP(C10,Tableau5[[#All],[Criteres]:[notation]],2,FALSE)),"",VLOOKUP(C10,Tableau5[[#All],[Criteres]:[notation]],2,FALSE)) -> 0-faible…=>10-forte | I10: 10 | J10: 4
B11: Lien familial | C11: Prise en compte des personnes à charge | D11: primordiale | E11: =IF(ISERROR(VLOOKUP(D11,importance!$A$2:$B$8,2,FALSE)),0,VLOOKUP(D11,importance!$A$2:$B$8,2,FALSE)) -> 100% | F11: 26% | H11: =IF(ISERROR(VLOOKUP(C11,Tableau5[[#All],[Criteres]:[notation]],2,FALSE)),"",VLOOKUP(C11,Tableau5[[#All],[Criteres]:[notation]],2,FALSE)) -> 0-nulle…=>10-forte | I11: 2 | J11: 8
B12: Dev_personnel | C12: Epanouissement personnel | D12: très important | E12: =IF(ISERROR(VLOOKUP(D12,importance!$A$2:$B$8,2,FALSE)),0,VLOOKUP(D12,importance!$A$2:$B$8,2,FALSE)) -> 90% | F12: 23% | H12: =IF(ISERROR(VLOOKUP(C12,Tableau5[[#All],[Criteres]:[notation]],2,FALSE)),"",VLOOKUP(C12,Tableau5[[#All],[Criteres]:[notation]],2,FALSE)) -> 0-faible…=>10-fort | I12: 7 | J12: 8
B13: Dev_personnel | C13: Temps libre pour des projets personnels | D13: important | E13: =IF(ISERROR(VLOOKUP(D13,importance!$A$2:$B$8,2,FALSE)),0,VLOOKUP(D13,importance!$A$2:$B$8,2,FALSE)) -> 75% | F13: 19% | H13: =IF(ISERROR(VLOOKUP(C13,Tableau5[[#All],[Criteres]:[notation]],2,FALSE)),"",VLOOKUP(C13,Tableau5[[#All],[Criteres]:[notation]],2,FALSE)) -> 0-faible…=>10-fort | I13: 3 | J13: 7
E14: =IF(ISERROR(VLOOKUP(D14,importance!$A$2:$B$8,2,FALSE)),0,VLOOKUP(D14,importance!$A$2:$B$8,2,FALSE)) -> 0% | F14: 0% | H14: =IF(ISERROR(VLOOKUP(C14,Tableau5[[#All],[Criteres]:[notation]],2,FALSE)),"",VLOOKUP(C14,Tableau5[[#All],[Criteres]:[notation]],2,FALSE)) -> 
E15: =IF(ISERROR(VLOOKUP(D15,importance!$A$2:$B$8,2,FALSE)),0,VLOOKUP(D15,importance!$A$2:$B$8,2,FALSE)) -> 0% | F15: 0% | H15: =IF(ISERROR(VLOOKUP(C15,Tableau5[[#All],[Criteres]:[notation]],2,FALSE)),"",VLOOKUP(C15,Tableau5[[#All],[Criteres]:[notation]],2,FALSE)) -> 
E16: =IF(ISERROR(VLOOKUP(D16,importance!$A$2:$B$8,2,FALSE)),0,VLOOKUP(D16,importance!$A$2:$B$8,2,FALSE)) -> 0% | F16: 0% | H16: =IF(ISERROR(VLOOKUP(C16,Tableau5[[#All],[Criteres]:[notation]],2,FALSE)),"",VLOOKUP(C16,Tableau5[[#All],[Criteres]:[notation]],2,FALSE)) -> 
E17: =IF(ISERROR(VLOOKUP(D17,importance!$A$2:$B$8,2,FALSE)),0,VLOOKUP(D17,importance!$A$2:$B$8,2,FALSE)) -> 0% | F17: =IF(E17=0,0,E17/$E$21) -> 0% | H17: =IF(ISERROR(VLOOKUP(C17,Tableau5[[#All],[Criteres]:[notation]],2,FALSE)),"",VLOOKUP(C17,Tableau5[[#All],[Criteres]:[notation]],2,FALSE)) -> 
E18: =IF(ISERROR(VLOOKUP(D18,importance!$A$2:$B$8,2,FALSE)),0,VLOOKUP(D18,importance!$A$2:$B$8,2,FALSE)) -> 0% | F18: 0% | H18: =IF(ISERROR(VLOOKUP(C18,Tableau5[[#All],[Criteres]:[notation]],2,FALSE)),"",VLOOKUP(C18,Tableau5[[#All],[Criteres]:[notation]],2,FALSE)) -> 
E19: =IF(ISERROR(VLOOKUP(D19,importance!$A$2:$B$8,2,FALSE)),0,VLOOKUP(D19,importance!$A$2:$B$8,2,FALSE)) -> 0% | F19: =IF(E19=0,0,E19/$E$21) -> 0% | H19: =IF(ISERROR(VLOOKUP(C19,Tableau5[[#All],[Criteres]:[notation]],2,FALSE)),"",VLOOKUP(C19,Tableau5[[#All],[Criteres]:[notation]],2,FALSE)) -> 
H20: Visualisez les notes => | I20: =(I9*$F9+I10*$F10+I11*$F11+I12*$F12+I13*$F13+I14*$F14+I15*$F15+I16*$F16+I17*$F17+I18*$F18+I19*$F19) -> 5.91 | J20: =(J9*$F9+J10*$F10+J11*$F11+J12*$F12+J13*$F13+J14*$F14+J15*$F15+J16*$F16+J17*$F17+J18*$F18+J19*$F19) -> 6.91 | K20: =(K9*$F9+K10*$F10+K11*$F11+K12*$F12+K13*$F13+K14*$F14+K15*$F15+K16*$F16+K17*$F17+K18*$F18+K19*$F19) -> 0.00 | L20: =(L9*$F9+L10*$F10+L11*$F11+L12*$F12+L13*$F13+L14*$F14+L15*$F15+L16*$F16+L17*$F17+L18*$F18+L19*$F19) -> 0.00 | M20: =(M9*$F9+M10*$F10+M11*$F11+M12*$F12+M13*$F13+M14*$F14+M15*$F15+M16*$F16+M17*$F17+M18*$F18+M19*$F19) -> 0.00
E21: =SUM(E9:E20) -> 390%

Sheet criteres (hidden)
A1: Famille | B1: Criteres | C1: notation | E1: preparation listes dependantes | G1: B9 | I1: B10 | K1: B11 | M1: B12 | O1: B13 | Q1: B14 | S1: B15 | U1: B16 | W1: B17 | Y1: B18 | AA1: B19 | AC1: B20
A2: Dev_personnel | B2: Accessibilité ces centres d'intérêt | C2: 0-inexistant … => 10-parfait | G2: =INDIRECT("'Quelle decision'!"&G1) -> Dev_professionnel | I2: =INDIRECT("'Quelle decision'!"&I1) -> Dev_professionnel | K2: =INDIRECT("'Quelle decision'!"&K1) -> Lien familial | M2: =INDIRECT("'Quelle decision'!"&M1) -> Dev_personnel | O2: =INDIRECT("'Quelle decision'!"&O1) -> Dev_personnel | Q2: =INDIRECT("'Quelle decision'!"&Q1) -> 0 | S2: =INDIRECT("'Quelle decision'!"&S1) -> 0 | U2: =INDIRECT("'Quelle decision'!"&U1) -> 0 | W2: =INDIRECT("'Quelle decision'!"&W1) -> 0 | Y2: =INDIRECT("'Quelle decision'!"&Y1) -> 0 | AA2: =INDIRECT("'Quelle decision'!"&AA1) -> 0 | AC2: =INDIRECT("'Quelle decision'!"&AC1) -> 0
A3: Dev_personnel | B3: Communion avec son environnement | C3: 0-nulle… => 10-parfaite | E3: =_xlfn.UNIQUE(Tableau5[[#Headers],[Famille]]) -> Famille | G3: critere1 | I3: critere2 | K3: critere3 | M3: critere4 | O3: critere5 | Q3: critere6 | S3: critere7 | U3: critere8 | W3: critere9 | Y3: critere10 | AA3: critere11 | AC3: critere12
A4: Dev_personnel | B4: Epanouissement personnel | C4: 0-faible…=>10-fort | E4: =_xlfn._xlws.SORT(_xlfn.UNIQUE(Tableau5[Famille])) -> Autre | G4: =IF(ISERROR(_xlfn._xlws.FILTER(Tableau5[Criteres],Tableau5[Famille]=INDIRECT("'Quelle decision'!"&G1))),"",_xlfn._xlws.FILTER(Tableau5[Criteres],Tableau5[Famille]=INDIRECT("'Quelle decision'!"&G1))) -> Avantages en nature | I4: =IF(ISERROR(_xlfn._xlws.FILTER(Tableau5[Criteres],Tableau5[Famille]=INDIRECT("'Quelle decision'!"&I1))),"",_xlfn._xlws.FILTER(Tableau5[Criteres],Tableau5[Famille]=INDIRECT("'Quelle decision'!"&I1))) -> Avantages en nature | K4: =IF(ISERROR(_xlfn._xlws.FILTER(Tableau5[Criteres],Tableau5[Famille]=INDIRECT("'Quelle decision'!"&K1))),"",_xlfn._xlws.FILTER(Tableau5[Criteres],Tableau5[Famille]=INDIRECT("'Quelle decision'!"&K1))) -> Prise en compte des personnes à charge | M4: =IF(ISERROR(_xlfn._xlws.FILTER(Tableau5[Criteres],Tableau5[Famille]=INDIRECT("'Quelle decision'!"&M1))),"",_xlfn._xlws.FILTER(Tableau5[Criteres],Tableau5[Famille]=INDIRECT("'Quelle decision'!"&M1))) -> Accessibilité ces centres d'intérêt | O4: =IF(ISERROR(_xlfn._xlws.FILTER(Tableau5[Criteres],Tableau5[Famille]=INDIRECT("'Quelle decision'!"&O1))),"",_xlfn._xlws.FILTER(Tableau5[Criteres],Tableau5[Famille]=INDIRECT("'Quelle decision'!"&O1))) -> Accessibilité ces centres d'intérêt | Q4: =IF(ISERROR(_xlfn._xlws.FILTER(Tableau5[Criteres],Tableau5[Famille]=INDIRECT("'Quelle decision'!"&Q1))),"",_xlfn._xlws.FILTER(Tableau5[Criteres],Tableau5[Famille]=INDIRECT("'Quelle decision'!"&Q1))) ->  | S4: =IF(ISERROR(_xlfn._xlws.FILTER(Tableau5[Criteres],Tableau5[Famille]=INDIRECT("'Quelle decision'!"&S1))),"",_xlfn._xlws.FILTER(Tableau5[Criteres],Tableau5[Famille]=INDIRECT("'Quelle decision'!"&S1))) ->  | U4: =IF(ISERROR(_xlfn._xlws.FILTER(Tableau5[Criteres],Tableau5[Famille]=INDIRECT("'Quelle decision'!"&U1))),"",_xlfn._xlws.FILTER(Tableau5[Criteres],Tableau5[Famille]=INDIRECT("'Quelle decision'!"&U1))) ->  | W4: =IF(ISERROR(_xlfn._xlws.FILTER(Tableau5[Criteres],Tableau5[Famille]=INDIRECT("'Quelle decision'!"&W1))),"",_xlfn._xlws.FILTER(Tableau5[Criteres],Tableau5[Famille]=INDIRECT("'Quelle decision'!"&W1))) ->  | Y4: =IF(ISERROR(_xlfn._xlws.FILTER(Tableau5[Criteres],Tableau5[Famille]=INDIRECT("'Quelle decision'!"&Y1))),"",_xlfn._xlws.FILTER(Tableau5[Criteres],Tableau5[Famille]=INDIRECT("'Quelle decision'!"&Y1))) ->  | AA4: =IF(ISERROR(_xlfn._xlws.FILTER(Tableau5[Criteres],Tableau5[Famille]=INDIRECT("'Quelle decision'!"&AA1))),"",_xlfn._xlws.FILTER(Tableau5[Criteres],Tableau5[Famille]=INDIRECT("'Quelle decision'!"&AA1))) ->  | AC4: =IF(ISERROR(_xlfn._xlws.FILTER(Tableau5[Criteres],Tableau5[Famille]=INDIRECT("'Quelle decision'!"&AC1))),"",_xlfn._xlws.FILTER(Tableau5[Criteres],Tableau5[Famille]=INDIRECT("'Quelle decision'!"&AC1))) -> 
A5: Dev_personnel | B5: Facilité d'adaptation | C5: 0-faible…=>10-forte | E5: Dev_personnel | G5: Epanouissement professionnel | I5: Epanouissement professionnel | K5: Prise en compte des proches | M5: Communion avec son environnement | O5: Communion avec son environnement
A6: Dev_personnel | B6: Importance du changement… de vie recherché | C6: 0-faible…=>10-forte | E6: Dev_professionnel | G6: Intérêt du travail | I6: Intérêt du travail | M6: Epanouissement personnel | O6: Epanouissement personnel
A7: Dev_personnel | B7: Temps libre pour des projets personnels | C7: 0-faible…=>10-fort | E7: Environnement | G7: Pénibilité | I7: Pénibilité | M7: Facilité d'adaptation | O7: Facilité d'adaptation
A8: Dev_personnel | B8: Autre dev perso | C8: 0-faible…=>10-fort | E8: Lien familial | G8: Perspective d'évolution | I8: Perspective d'évolution | M8: Importance du changement… de vie recherché | O8: Importance du changement… de vie recherché
A9: Dev_professionnel | B9: Avantages en nature | C9: 0-inexistants … => 10-parfaits | E9: Localisation | G9: Rémunération | I9: Rémunération | M9: Temps libre pour des projets personnels | O9: Temps libre pour des projets personnels
A10: Dev_professionnel | B10: Epanouissement professionnel | C10: 0-inexistant … => 10-parfait | E10: Logement | G10: Autre Develop Pro | I10: Autre Develop Pro | M10: Autre dev perso | O10: Autre dev perso
A11: Dev_professionnel | B11: Intérêt du travail | C11: 0-faible…=>10-fort
A12: Dev_professionnel | B12: Pénibilité | C12: 0-très penible…=> 10:pas pénible
A13: Dev_professionnel | B13: Perspective d'évolution | C13: 0-faible…=>10-forte
A14: Dev_professionnel | B14: Rémunération | C14: 0-faible…=>10-forte
A15: Dev_professionnel | B15: Autre Develop Pro | C15: 0-faible…=>10-fort
A16: Environnement | B16: Climat : [canicule / inondation} | C16: 0-trop risqué…=> 10-idéal
A17: Environnement | B17: Environnement recherché : [ville / campagne...] | C17: 0-inadapté…=> 10-idéal
A18: Environnement | B18: Jardin | C18: 0-inexistant … => 10-parfait
A19: Environnement | B19: Autre Environnement | C19: 0-faible…=>10-fort
A20: Lien familial | B20: Prise en compte des personnes à charge | C20: 0-nulle…=>10-forte
A21: Lien familial | B21: Prise en compte des proches | C21: 0-nulle…=>10-forte
A22: Localisation | B22: Localisation régionale | C22: 0-nulle… => 10-parfaite
A23: Localisation | B23: Proximité des établissements socio-éducatifs | C23: 0-trop éloigné…=> 10-idéal
A24: Localisation | B24: Proximité des lieux culturels | C24: 0-trop éloigné…=> 10-idéal
A25: Localisation | B25: Proximité des lieux de cultes | C25: 0-trop éloigné…=> 10-idéal
A26: Localisation | B26: Proximité des transports | C26: 0-trop éloigné…=> 10-idéal
A27: Localisation | B27: Proximité des lieux gastronomiques | C27: 0-trop éloigné…=> 10-idéal
A28: Localisation | B28: Proximité des commerces | C28: 0-trop éloigné…=> 10-idéal
A29: Logement | B29: Prix [endettement} | C29: 0-fort endettement…=> sans endettement
A30: Logement | B30: Surface habitable | C30: 0-trop petite…=>10-idéale
A31: Logement | B31: Travaux | C31: 0-trop de travaux…=> 10-ce qu'il faut
A32: Autre | B32: (Préciser) | C32: 0-faible… => 10-fort

Sheet importance (hidden)
A1: importance de l'item dans le choix
A2: aucune importance | B2: 0
A3: très faible importance | B3: 0.1
A4: peu important | B4: 0.25
A5: moyennement important | B5: 0.5
A6: important | B6: 0.75
A7: très important | B7: 0.9
A8: primordiale | B8: 1
